bitfinex/quotes_BTCUSD_20240818
["timestamp","ask_amount","ask_price","bid_price","bid_amount"]
[1723965805344,0.136015,59732.0,59731.0,0.66987013]
[1723965806153,0.136015,59732.0,59731.0,0.52967013]
[1723965806154,0.370395,59732.0,59731.0,0.52967013]
[1723965806359,0.979355,59732.0,59731.0,0.05775003]
[1723965806686,1.15090954,59732.0,59731.0,0.02282425]
[1723965809067,1.15090954,59732.0,59731.0,0.02282883]
[1723965809469,1.15090954,59732.0,59731.0,0.002]
[1723965809803,1.15090954,59732.0,59731.0,0.02282882]
[1723965810424,1.15090954,59732.0,59731.0,0.002]
[1723965810585,1.38528954,59732.0,59731.0,0.002]
[1723965812064,1.08570954,59732.0,59731.0,0.002]
[1723965812265,1.09570221,59732.0,59731.0,0.002]
[1723965813186,1.09570221,59732.0,59731.0,0.02282999]
[1723965814161,1.09570221,59732.0,59731.0,0.002]
[1723965818214,1.17720221,59732.0,59731.0,0.002]
[1723965818862,1.24280221,59732.0,59731.0,0.002]
[1723965820525,1.47718221,59732.0,59731.0,0.002]
[1723965820699,1.73154493,59732.0,59731.0,0.002]
[1723965821489,1.7234795,59732.0,59731.0,0.001]
[1723965821769,1.7464795,59732.0,59731.0,0.001]
[1723965821924,1.7604795,59732.0,59731.0,0.002]
[1723965822255,1.63518221,59732.0,59731.0,0.002]
[1723965822872,1.62618221,59732.0,59731.0,0.001]
[1723965823243,1.64018221,59732.0,59731.0,0.001]
[1723965823621,0.820438,59724.0,59723.0,0.06]
[1723965823821,0.99199254,59724.0,59723.0,0.06]
[1723965825088,0.99599254,59724.0,59723.0,0.06]
[1723965826049,1.00099254,59724.0,59723.0,0.06]
[1723965833104,1.00181754,59724.0,59723.0,0.06]
[1723965834535,1.01172207,59724.0,59723.0,0.06]
[1723965837090,0.60575653,59724.0,59723.0,0.06]
[1723965841316,0.234439,59717.0,59714.0,0.1405]
[1723965841529,0.117222,59716.0,59715.0,0.05579109]
[1723965841727,0.351665,59716.0,59715.0,0.19629109]
[1723965842044,0.351665,59716.0,59715.0,0.2161017]
[1723965842450,0.586108,59716.0,59715.0,0.19629109]
[1723965843762,0.587108,59716.0,59715.0,0.19729109]
[1723965844495,0.587108,59716.0,59715.0,0.19929109]
[1723965845330,0.587108,59716.0,59715.0,0.1435]
[1723965845533,0.587108,59716.0,59715.0,0.19931372]
[1723965845943,0.587108,59716.0,59715.0,0.19931484]
[1723965849564,0.587108,59716.0,59715.0,0.1435]
[1723965849767,0.587108,59716.0,59715.0,0.19931465]
[1723965850189,0.352665,59716.0,59715.0,0.19931465]
[1723965853962,0.352665,59716.0,59715.0,0.19931331]
[1723965854592,0.587108,59716.0,59715.0,0.13811331]
[1723965855551,0.587108,59716.0,59715.0,0.13611331]
[1723965855756,0.587108,59716.0,59715.0,0.13811331]
[1723965856157,0.586108,59716.0,59715.0,0.13711331]
[1723965857117,0.586108,59716.0,59715.0,0.13511331]
[1723965857560,0.587108,59716.0,59715.0,0.13511331]
[1723965857780,0.587108,59716.0,59715.0,0.0793]
[1723965858012,0.587108,59716.0,59715.0,0.13511233]
[1723965858384,0.587108,59716.0,59715.0,0.02084741]
[1723965858590,0.821551,59716.0,59715.0,0.02084741]
[1723965859449,0.821551,59716.0,59715.0,0.10014741]
[1723965861233,1.07460554,59716.0,59715.0,0.02084741]
[1723965861795,1.07460554,59716.0,59713.0,0.0009075]
[1723965861796,0.586125,59714.0,59713.0,0.0009075]
[1723965861997,0.75767954,59714.0,59713.0,0.02175848]
[1723965863206,0.75767954,59714.0,59713.0,0.05772537]
[1723965863608,0.75767954,59714.0,59713.0,0.05972537]
[1723965864509,0.99212954,59714.0,59713.0,0.05972537]
[1723965864694,0.99212954,59714.0,59713.0,0.02475848]
[1723965865325,0.99212954,59714.0,59713.0,0.05972546]
[1723965865526,0.99212954,59714.0,59713.0,0.02475848]
[1723965865927,0.99212954,59714.0,59713.0,0.0039075]
[1723965866130,0.99212954,59714.0,59713.0,0.02475632]
[1723965866756,0.99212954,59714.0,59713.0,0.02275632]
[1723965866930,0.99212954,59714.0,59713.0,0.02175632]
[1723965867141,0.99212954,59714.0,59713.0,0.02275632]
[1723965867342,0.99212954,59714.0,59713.0,0.02375632]
[1723965869930,0.99212954,59714.0,59713.0,0.0237585]
[1723965870932,0.99212954,59714.0,59713.0,0.0227585]
[1723965871181,0.351675,59714.0,59713.0,0.0227585]
[1723965871384,0.586125,59714.0,59713.0,0.1012585]
[1723965871590,0.587125,59714.0,59713.0,0.1632585]
[1723965872045,0.352675,59714.0,59713.0,0.1622585]
[1723965874655,0.352675,59714.0,59713.0,0.19722144]
[1723965878184,0.352675,59714.0,59713.0,0.1414075]
[1723965878430,0.352675,59714.0,59713.0,0.19721283]
[1723965879981,0.001,59714.0,59713.0,0.19721283]
[1723965880183,0.001,59714.0,59713.0,0.24741834]
[1723965880392,0.118225,59714.0,59713.0,0.24741834]
[1723965881878,0.11905,59714.0,59713.0,0.24741834]
[1723965882279,0.001825,59714.0,59713.0,0.24741834]
[1723965882528,0.11905,59714.0,59713.0,0.24741657]
[1723965882995,0.11905,59714.0,59713.0,0.24741545]
[1723965884576,0.001825,59714.0,59713.0,0.24741545]
[1723965884799,0.11905,59714.0,59713.0,0.24741545]
[1723965886825,0.11905,59714.0,59713.0,0.24741485]
[1723965887572,0.001825,59714.0,59713.0,0.24741485]
[1723965887777,0.001825,59714.0,59713.0,0.24740639]
[1723965888334,0.001825,59714.0,59713.0,0.36463339]
[1723965888472,0.001825,59714.0,59713.0,1.23026665]
[1723965889312,0.001825,59714.0,59713.0,0.99581265]
[1723965889711,0.000825,59714.0,59713.0,0.99581265]
[1723965889934,0.000825,59714.0,59713.0,0.99680178]
[1723965890141,0.000825,59714.0,59713.0,0.99880178]
[1723965891232,0.000825,59714.0,59713.0,0.92351075]
[1723965892223,0.000825,59714.0,59713.0,0.92350815]
[1723965894619,0.000825,59714.0,59713.0,1.15796215]
[1723965894837,0.000825,59714.0,59713.0,1.58773893]
[1723965895161,0.000825,59714.0,59713.0,1.56309449]
[1723965896007,0.000825,59714.0,59713.0,2.83449449]
[1723965896206,0.000825,59714.0,59713.0,2.83449299]
[1723965896527,0.000825,59714.0,59713.0,3.50525315]
[1723965897095,0.000825,59714.0,59713.0,3.35467892]
[1723965897295,0.000825,59714.0,59713.0,2.83449299]
[1723965898465,0.000825,59714.0,59713.0,2.83149299]
[1723965898582,0.000825,59714.0,59713.0,2.68751431]
[1723965898785,0.000825,59714.0,59713.0,2.83144596]
[1723965900856,0.000825,59714.0,59713.0,2.83139197]
[1723965901432,0.000825,59714.0,59713.0,2.68746032]
[1723965901793,0.000825,59714.0,59713.0,2.83140173]
[1723965905412,0.000825,59714.0,59713.0,2.79741709]
[1723965905624,0.000825,59714.0,59713.0,2.83139539]
[1723965905958,0.000825,59714.0,59713.0,2.82217017]
[1723965906157,0.000825,59714.0,59713.0,2.83137722]
[1723965907149,0.000825,59714.0,59713.0,3.00597337]
[1723965909086,0.000825,59714.0,59713.0,2.0091607]
[1723965909262,0.000825,59714.0,59713.0,1.95058048]
[1723965909466,0.000825,59714.0,59713.0,1.82125638]
[1723965909800,0.000825,59714.0,59713.0,1.63689825]
[1723965910005,0.000825,59714.0,59713.0,1.58680238]
[1723965910204,0.000825,59714.0,59713.0,1.64098748]
[1723965911356,0.000825,59714.0,59713.0,1.60617438]
[1723965911554,0.000825,59714.0,59713.0,1.64099264]
[1723965913435,0.000825,59714.0,59713.0,0.44673252]
[1723965913817,0.000825,59714.0,59713.0,0.57123902]
[1723965914023,0.000825,59714.0,59713.0,0.68120145]
[1723965915046,0.000825,59714.0,59713.0,1.05279733]
[1723965916845,0.000825,59714.0,59713.0,1.05281221]
[1723965917388,0.000825,59714.0,59713.0,0.97764453]
[1723965918341,0.000825,59714.0,59713.0,0.8676821]
[1723965918541,0.000825,59714.0,59713.0,0.97764876]
[1723965919348,0.000825,59714.0,59713.0,1.07787234]
[1723965921449,0.000825,59714.0,59713.0,1.31232634]
[1723965922081,0.000825,59714.0,59713.0,1.37092976]
[1723965922292,0.000825,59714.0,59713.0,1.27070618]
[1723965923110,0.000825,59714.0,59713.0,1.03625218]
[1723965923282,0.000825,59714.0,59713.0,1.0362477]
[1723965923485,0.000825,59714.0,59713.0,1.16158782]
[1723965924783,0.000825,59714.0,59713.0,1.18636325]
[1723965925165,0.000825,59714.0,59713.0,1.18636331]
[1723965925392,0.000825,59714.0,59713.0,1.16158782]
[1723965925566,0.000825,59714.0,59713.0,1.37142368]
[1723965925767,0.000825,59714.0,59713.0,1.24608356]
[1723965926035,0.000825,59714.0,59713.0,1.33658562]
[1723965926393,0.000825,59714.0,59713.0,1.48054315]
[1723965926745,0.000825,59714.0,59713.0,1.24608915]
[1723965927694,0.000825,59714.0,59713.0,0.87450003]
[1723965927868,0.000825,59714.0,59713.0,1.48053174]
[1723965928046,0.000825,59714.0,59713.0,1.24607774]
[1723965929139,0.000825,59714.0,59713.0,1.48053174]
[1723965929337,0.000825,59714.0,59713.0,1.24607774]
[1723965930271,0.000825,59714.0,59713.0,1.2460778]
[1723965930684,0.000825,59714.0,59713.0,1.24608089]
[1723965931290,0.000825,59714.0,59713.0,2.51548089]
[1723965931983,0.000825,59714.0,59713.0,3.5951369]
[1723965932206,0.000825,59714.0,59713.0,3.58474633]
[1723965932379,1e-08,59714.0,59713.0,3.60059699]
[1723965933477,1e-08,59714.0,59713.0,3.59959699]
[1723965933651,0.00100001,59714.0,59713.0,3.60059699]
[1723965934034,0.00100001,59714.0,59713.0,3.59959699]
[1723965934035,1e-08,59714.0,59713.0,3.59959699]
[1723965934238,0.00100001,59714.0,59713.0,3.60057505]
[1723965934433,0.00100001,59714.0,59713.0,3.59857505]
[1723965935069,0.00200001,59714.0,59713.0,3.60357505]
[1723965935543,0.00100001,59714.0,59713.0,3.59857505]
[1723965936024,0.00200001,59714.0,59713.0,3.60557505]
[1723965936600,0.00200001,59714.0,59713.0,3.60657505]
[1723965936800,0.00200001,59714.0,59713.0,3.60757505]
[1723965937010,0.00200001,59714.0,59713.0,3.60754139]
[1723965938311,0.00200001,59714.0,59713.0,3.6075101]
[1723965940273,0.00200001,59714.0,59713.0,3.8419641]
[1723965940559,0.00200001,59714.0,59713.0,3.6075101]
[1723965940677,0.00200001,59714.0,59713.0,3.8419641]
[1723965941522,0.00100001,59714.0,59713.0,3.8349641]
[1723965941922,0.00100001,59714.0,59713.0,3.8399641]
[1723965941923,0.00200001,59714.0,59713.0,3.8399641]
[1723965942331,0.00100001,59714.0,59713.0,3.83898218]
[1723965942765,0.00200001,59714.0,59713.0,3.85298051]
[1723965946402,0.00200001,59714.0,59713.0,3.65310362]
[1723965946583,0.00200001,59714.0,59713.0,3.85299035]
[1723965947457,0.000825,59724.0,59723.0,0.667537]
[1723965947657,0.000825,59724.0,59723.0,1.09485445]
[1723965947859,0.000825,59724.0,59723.0,1.14903658]
[1723965948268,0.000825,59724.0,59723.0,1.24930481]
[1723965948430,0.000825,59724.0,59723.0,1.48371981]
[1723965948929,0.000825,59724.0,59723.0,1.48771981]
[1723965949238,0.000825,59724.0,59723.0,2.75711981]
[1723965949891,0.000825,59724.0,59723.0,2.76111981]
[1723965950062,0.000825,59724.0,59723.0,2.76110325]
[1723965950465,0.000825,59724.0,59723.0,2.66084287]
[1723965952733,0.000825,59724.0,59723.0,2.80004287]
[1723965954418,0.000825,59724.0,59723.0,2.69008984]
[1723965954622,0.000825,59724.0,59723.0,2.80004545]
[1723965958260,0.000825,59724.0,59723.0,2.85864223]
[1723965958649,0.000825,59724.0,59723.0,2.85864998]
[1723965960410,0.000825,59724.0,59723.0,2.99637615]
[1723965960586,0.000825,59724.0,59723.0,3.09661468]
[1723965963013,0.000825,59724.0,59723.0,3.09664271]
[1723965963242,0.000825,59724.0,59723.0,3.10585209]
[1723965965568,0.000825,59724.0,59723.0,2.83192032]
[1723965965770,0.000825,59724.0,59723.0,2.89102972]
[1723965966136,0.000825,59724.0,59723.0,2.8910296]
[1723965966478,0.000825,59724.0,59723.0,2.9912964]
[1723965967154,0.000825,59724.0,59723.0,2.50382686]
[1723965969938,0.000825,59724.0,59723.0,2.50382512]
[1723965970349,0.000825,59724.0,59723.0,2.40355832]
[1723965970550,0.000825,59724.0,59723.0,2.16914332]
[1723965971333,0.000825,59724.0,59723.0,2.29447682]
[1723965973501,0.000825,59724.0,59723.0,1.94285482]
[1723965973715,0.493741,59724.0,59723.0,1.83418867]
[1723965973911,0.25933,59724.0,59723.0,1.83418867]
[1723965974216,0.25933,59724.0,59723.0,1.40845978]
[1723965974217,0.493741,59724.0,59723.0,1.40845978]
[1723965974409,0.25933,59724.0,59723.0,1.78002385]
[1723965975370,0.25933,59724.0,59723.0,1.78003985]
[1723965976411,0.25933,59724.0,59723.0,0.11398749]
[1723965976412,0.728152,59724.0,59723.0,0.11398749]
[1723965976611,0.728152,59724.0,59723.0,0.06378473]
[1723965977375,0.728152,59724.0,59723.0,0.02883719]
[1723965977794,0.728152,59724.0,59723.0,0.11399162]
[1723965978017,0.728152,59724.0,59723.0,0.05820276]
[1723965978222,0.728152,59724.0,59723.0,0.0637899]
[1723965978627,0.728152,59724.0,59723.0,0.06378974]
[1723965979273,0.728152,59724.0,59723.0,0.05978974]
[1723965979479,0.729152,59724.0,59723.0,0.05978974]
[1723965980565,0.729152,59724.0,59723.0,0.05578974]
[1723965980773,0.731152,59724.0,59723.0,0.05578974]
[1723965981391,0.729152,59724.0,59723.0,0.02083903]
[1723965981561,0.729152,59724.0,59723.0,0.05578939]
[1723965981762,0.731152,59724.0,59723.0,0.05578939]
[1723965982165,0.351622,59723.0,59722.0,0.05018709]
[1723965982484,0.492922,59723.0,59722.0,0.10597696]
[1723965983254,0.492922,59723.0,59722.0,0.05578987]
[1723965983408,0.492922,59723.0,59722.0,0.02083908]
[1723965984165,0.727337,59723.0,59722.0,0.02083908]
[1723965986094,1.13330654,59723.0,59722.0,0.02083908]
[1723965986755,1.13330654,59723.0,59714.0,1.32049459]
[1723965986756,0.0767,59715.0,59714.0,1.32049459]
[1723965986993,0.0767,59715.0,59714.0,1.37630543]
[1723965987197,0.193923,59715.0,59714.0,1.32611834]
[1723965987748,0.193923,59715.0,59714.0,0.05671834]
[1723965988374,0.428369,59715.0,59714.0,0.05671834]
[1723965990806,0.428369,59715.0,59714.0,0.0009075]
[1723965991009,0.428369,59715.0,59714.0,0.05671959]
[1723965991451,0.428369,59715.0,59714.0,0.02175484]
[1723965991725,0.428369,59715.0,59714.0,0.05671976]
[1723965991972,0.428369,59715.0,59714.0,0.02175484]
[1723965992870,0.429369,59715.0,59714.0,0.02975484]
[1723965993590,0.430369,59715.0,59714.0,0.03875484]
[1723965994322,0.353669,59715.0,59714.0,0.03875484]
[1723965994588,0.119223,59715.0,59714.0,0.03875484]
[1723965994844,0.002,59715.0,59714.0,0.09451743]
[1723965996006,0.001,59715.0,59714.0,0.08651743]
[1723965996236,0.117222,59716.0,59714.0,0.07751743]
[1723965996474,0.117222,59716.0,59715.0,0.05581114]
[1723965997164,0.117222,59716.0,59715.0,0.13671114]
[1723965997398,0.0757,59721.0,59715.0,0.13671114]
[1723965997651,0.117217,59719.0,59716.0,0.12241114]
[1723965997880,0.117217,59719.0,59717.0,0.05580737]
[1723965998090,0.117217,59719.0,59718.0,0.02084734]
[1723965999112,0.117213,59721.0,59718.0,0.10174734]
[1723965999310,0.117213,59720.0,59719.0,0.02084734]
[1723966000652,0.005,59721.0,59719.0,0.02084734]
[1723966000814,0.005,59721.0,59720.0,0.02084734]
[1723966000815,0.122211,59721.0,59720.0,0.02084734]
[1723966001649,0.356634,59721.0,59720.0,0.02084734]
[1723966001845,0.351634,59721.0,59720.0,0.02084734]
[1723966003142,0.356634,59721.0,59720.0,0.05580911]
[1723966003567,0.117215,59720.0,59718.0,0.0809]
[1723966003681,0.117215,59720.0,59719.0,0.03496192]
[1723966003886,0.117215,59720.0,59719.0,0.05580754]
[1723966004082,0.117215,59720.0,59719.0,0.0208457]
[1723966004311,0.117215,59720.0,59719.0,0.05580761]
[1723966005607,0.117213,59720.0,59719.0,0.05580761]
[1723966007155,0.117215,59719.0,59718.0,0.0809]
[1723966008518,0.005825,59721.0,59718.0,0.0809]
[1723966008690,0.005825,59721.0,59720.0,0.0791]
[1723966009056,0.000825,59721.0,59720.0,0.0791]
[1723966010178,0.000825,59721.0,59720.0,0.13492294]
[1723966010383,0.005825,59721.0,59720.0,0.13492294]
[1723966010594,0.005825,59721.0,59720.0,0.54806294]
[1723966011681,0.005825,59721.0,59720.0,0.51309143]
[1723966011822,0.005825,59721.0,59720.0,0.49224]
[1723966012214,0.005825,59721.0,59720.0,0.726667]
[1723966012416,0.005825,59721.0,59720.0,0.49224]
[1723966013112,0.005825,59721.0,59720.0,0.54805921]
[1723966014360,0.005825,59721.0,59720.0,0.59817936]
[1723966015212,0.005825,59721.0,59720.0,0.36375236]
[1723966015623,0.010825,59721.0,59720.0,0.36375236]
[1723966015832,0.010825,59721.0,59720.0,0.22315236]
[1723966018046,0.010825,59721.0,59720.0,0.16733315]
[1723966018249,0.010825,59721.0,59720.0,0.22315292]
[1723966018503,0.010825,59721.0,59720.0,0.22321761]
[1723966019232,0.010825,59721.0,59720.0,0.17303277]
[1723966019720,0.010825,59721.0,59720.0,0.10601362]
[1723966020792,0.010825,59721.0,59720.0,0.22322662]
[1723966020988,0.010825,59721.0,59720.0,0.17303277]
[1723966021196,0.010825,59721.0,59720.0,0.117213]
[1723966021360,0.010825,59721.0,59720.0,0.17303521]
[1723966023072,0.010825,59721.0,59720.0,0.31823521]
[1723966023471,0.010825,59721.0,59720.0,0.39353059]
[1723966023711,0.010825,59721.0,59720.0,0.31823521]
[1723966024123,0.010825,59721.0,59720.0,0.39353059]
[1723966024348,0.010825,59721.0,59720.0,0.76510081]
[1723966025686,0.010825,59721.0,59720.0,0.8444217]
[1723966026260,0.010825,59721.0,59720.0,0.84440947]
[1723966028812,0.010825,59721.0,59720.0,0.73436483]
[1723966029016,0.010825,59721.0,59720.0,0.84440275]
[1723966029917,0.010825,59721.0,59720.0,1.07882975]
[1723966030280,0.005825,59721.0,59720.0,1.07882975]
[1723966030690,0.002825,59721.0,59720.0,1.07882975]
[1723966031124,0.005825,59721.0,59720.0,1.07882975]
[1723966033033,0.005825,59721.0,59720.0,0.96879183]
[1723966033210,0.005825,59721.0,59720.0,1.0788299]
[1723966034031,0.005825,59721.0,59720.0,1.00375908]
[1723966034246,0.005825,59721.0,59720.0,1.0788299]
[1723966034391,0.005825,59721.0,59720.0,1.07882989]
[1723966040389,0.005825,59721.0,59720.0,0.97844828]
[1723966043254,0.005825,59721.0,59720.0,1.10394058]
[1723966045628,0.005825,59721.0,59720.0,1.10403115]
[1723966045809,0.005825,59721.0,59720.0,1.10408925]
[1723966048243,0.005825,59721.0,59720.0,0.9784899]
[1723966049475,0.005825,59721.0,59720.0,0.97848199]
[1723966049718,0.005825,59721.0,59720.0,0.97848194]
[1723966053277,0.005825,59721.0,59720.0,1.03714962]
[1723966053478,0.005825,59721.0,59720.0,1.03714269]
[1723966055375,0.005825,59721.0,59720.0,1.06194139]
[1723966057091,0.005825,59721.0,59720.0,0.95316113]
[1723966057351,0.005825,59721.0,59720.0,0.75248704]
[1723966057480,0.005825,59721.0,59720.0,0.86970004]
[1723966057890,0.005825,59721.0,59720.0,0.82373574]
[1723966058256,0.005825,59721.0,59720.0,0.82533086]
[1723966058586,0.005825,59721.0,59720.0,0.72480198]
[1723966058798,0.005825,59721.0,59720.0,0.60758898]
[1723966059010,0.005825,59721.0,59720.0,0.70813785]
[1723966061332,0.005825,59721.0,59720.0,0.70813356]
[1723966063448,0.005825,59721.0,59720.0,0.67314632]
[1723966065130,0.005825,59721.0,59720.0,0.67315076]
[1723966065647,0.005825,59721.0,59720.0,0.61730256]
[1723966065845,0.005825,59721.0,59720.0,0.67315154]
[1723966069817,0.123036,59721.0,59720.0,0.67315154]
[1723966070023,0.729882,59721.0,59720.0,0.05584898]
[1723966070284,0.729882,59721.0,59720.0,0.10611316]
[1723966070490,0.729882,59721.0,59720.0,0.05584898]
[1723966070890,1.13585954,59721.0,59720.0,0.05584898]
[1723966071164,1.13585954,59721.0,59720.0,0.02086116]
[1723966073222,0.586087,59718.0,59717.0,0.0502567]
[1723966073408,0.586087,59718.0,59717.0,0.05586348]
[1723966074586,0.586087,59718.0,59717.0,0.05686348]
[1723966074787,0.586087,59718.0,59717.0,0.05786348]
[1723966075938,0.351652,59718.0,59717.0,0.05786348]
[1723966076478,0.351652,59718.0,59717.0,0.13906348]
[1723966077933,0.351652,59718.0,59717.0,0.13906364]
[1723966081144,0.351652,59718.0,59717.0,0.13906091]
[1723966081558,0.351652,59718.0,59717.0,0.0832]
[1723966081756,0.351652,59718.0,59717.0,0.1390593]
[1723966081985,0.351652,59718.0,59717.0,0.1380593]
[1723966082921,0.351652,59718.0,59717.0,0.13705944]
[1723966083117,0.40680254,59721.0,59717.0,0.19835944]
[1723966083118,0.234427,59720.0,59717.0,0.19835944]
[1723966083347,0.234427,59720.0,59718.0,0.05585944]
[1723966083520,0.234427,59720.0,59719.0,0.05585944]
[1723966083521,0.35164,59720.0,59719.0,0.05585944]
[1723966084730,0.35264,59720.0,59719.0,0.05585944]
[1723966085374,0.66382575,59720.0,59719.0,0.02086504]
[1723966085569,0.66482575,59720.0,59719.0,0.02086504]
[1723966087661,0.72852575,59720.0,59719.0,0.02086504]
[1723966088087,0.58802575,59720.0,59719.0,0.02086504]
[1723966088698,0.58802575,59720.0,59717.0,0.082]
[1723966088699,0.351652,59718.0,59717.0,0.082]
[1723966088961,0.586087,59718.0,59717.0,0.13786516]
[1723966089792,0.351652,59718.0,59717.0,0.13786516]
[1723966090606,0.118213,59720.0,59719.0,0.082]
[1723966090816,0.118213,59720.0,59719.0,0.13786516]
[1723966091751,0.117213,59720.0,59719.0,0.13786516]
[1723966092622,0.118213,59720.0,59719.0,0.13786516]
[1723966092830,0.119213,59720.0,59719.0,0.13786516]
[1723966095306,0.002,59720.0,59719.0,0.13786516]
[1723966095937,0.119213,59720.0,59719.0,0.13786516]
[1723966098354,0.119133,59720.0,59719.0,0.13786516]
[1723966099628,0.00192,59720.0,59719.0,0.13786516]
[1723966100992,0.00192,59720.0,59719.0,0.13785968]
[1723966101616,0.119133,59720.0,59719.0,0.13785968]
[1723966102060,0.119133,59720.0,59719.0,0.18809239]
[1723966102261,0.00192,59720.0,59719.0,0.18809239]
[1723966103605,0.00192,59720.0,59719.0,0.18899989]
[1723966103956,0.002745,59720.0,59719.0,0.18899989]
[1723966105398,0.002745,59720.0,59719.0,0.13314021]
[1723966105599,0.002745,59720.0,59719.0,0.18899386]
[1723966107901,0.002745,59720.0,59719.0,0.25089386]
[1723966109291,0.119958,59720.0,59719.0,0.25091521]
[1723966110250,0.119958,59720.0,59719.0,0.20066115]
[1723966114172,0.119958,59720.0,59719.0,0.27605738]
[1723966114789,0.119958,59720.0,59719.0,0.20066115]
[1723966115166,0.119958,59720.0,59719.0,0.27605738]
[1723966117096,0.119958,59720.0,59719.0,0.20066115]
[1723966117415,0.119958,59720.0,59719.0,0.27605738]
[1723966117617,0.354385,59720.0,59719.0,0.22020373]
[1723966117818,0.119958,59720.0,59719.0,0.27605574]
[1723966118228,0.119958,59720.0,59719.0,0.27605664]
[1723966118473,0.119958,59720.0,59719.0,0.27606494]
[1723966120822,0.119958,59720.0,59719.0,0.20066041]
[1723966121215,0.119958,59720.0,59719.0,0.27606494]
[1723966121928,0.119958,59720.0,59719.0,0.22021203]
[1723966122443,0.119958,59720.0,59719.0,0.27606242]
[1723966123160,0.119958,59720.0,59719.0,0.27605822]
[1723966124774,0.002745,59720.0,59719.0,0.27605822]
[1723966125178,0.002745,59720.0,59719.0,0.62770422]
[1723966125378,0.002745,59720.0,59719.0,1.07865438]
[1723966125800,0.002745,59720.0,59719.0,1.10378782]
[1723966126219,0.002745,59720.0,59719.0,0.99369089]
[1723966126414,0.002745,59720.0,59719.0,1.10377533]
[1723966128353,0.002745,59720.0,59719.0,0.99369089]
[1723966128568,0.002745,59720.0,59719.0,0.97811038]
[1723966129742,0.002745,59720.0,59719.0,0.74367938]
[1723966130643,0.002745,59720.0,59719.0,0.68942983]
[1723966130907,0.002745,59720.0,59719.0,0.7436747]
[1723966131701,0.002745,59720.0,59719.0,0.9781057]
[1723966131842,0.002745,59720.0,59719.0,0.7436747]
[1723966132863,0.002745,59720.0,59719.0,0.9781057]
[1723966133495,0.002745,59720.0,59719.0,0.97810568]
[1723966135383,0.002745,59720.0,59719.0,0.74367468]
[1723966135592,0.002745,59720.0,59719.0,0.97810568]
[1723966139433,0.002745,59720.0,59719.0,0.86802001]
[1723966139604,0.002745,59720.0,59719.0,0.74366609]
[1723966141033,0.002745,59720.0,59719.0,0.74366541]
[1723966143095,0.002745,59720.0,59719.0,0.74367012]
[1723966146564,0.002745,59720.0,59719.0,0.63358833]
[1723966146768,0.002745,59720.0,59719.0,0.74366984]
[1723966148107,0.002745,59720.0,59719.0,0.62645484]
[1723966148305,0.002745,59720.0,59719.0,0.72693552]
[1723966150823,0.002745,59720.0,59719.0,0.72695997]
[1723966151050,0.002745,59720.0,59719.0,0.67270459]
[1723966151244,0.002745,59720.0,59719.0,0.57222391]
[1723966153917,0.002745,59720.0,59719.0,0.67270459]
[1723966154088,0.002745,59720.0,59719.0,0.67274848]
[1723966154289,0.002745,59720.0,59719.0,0.62649403]
[1723966154514,0.002745,59720.0,59719.0,0.7270081]
[1723966156199,0.002745,59720.0,59719.0,0.72701262]
[1723966158469,0.119958,59720.0,59719.0,0.64763274]
[1723966158649,0.119958,59720.0,59719.0,0.27605641]
[1723966158853,0.119958,59720.0,59719.0,0.64764318]
[1723966159295,0.119958,59720.0,59719.0,0.64764652]
[1723966159466,0.119958,59720.0,59719.0,0.59179151]
[1723966159667,0.119958,59720.0,59719.0,0.57225306]
[1723966160841,0.588812,59720.0,59719.0,0.57225306]
[1723966161247,0.588812,59720.0,59719.0,0.6476511]
[1723966162213,0.588812,59720.0,59719.0,0.57225306]
[1723966163205,0.588812,59720.0,59719.0,0.50375375]
[1723966163402,0.588812,59720.0,59719.0,0.13216852]
[1723966163600,0.588812,59720.0,59719.0,0.05676783]
[1723966164137,0.588812,59720.0,59719.0,0.10703896]
[1723966164338,0.588812,59720.0,59719.0,0.05676783]
[1723966168095,0.588812,59720.0,59719.0,0.0009075]
[1723966168305,0.588812,59720.0,59719.0,0.05677564]
[1723966170238,0.588812,59720.0,59719.0,0.02177579]
[1723966170836,0.588812,59720.0,59719.0,0.05677535]
[1723966171140,0.588812,59720.0,59719.0,0.02177579]
[1723966172881,0.823239,59720.0,59719.0,0.02177579]
[1723966181452,0.823239,59720.0,59719.0,0.0009075]
[1723966181628,0.823239,59720.0,59719.0,0.02177332]
[1723966182151,0.823239,59720.0,59719.0,0.02177308]
[1723966182351,0.899939,59720.0,59719.0,0.02177308]
[1723966183405,0.899939,59720.0,59719.0,0.0567685]
[1723966185450,0.899939,59720.0,59719.0,0.05676864]
[1723966187941,0.823239,59720.0,59719.0,0.05676864]
[1723966189698,0.823239,59720.0,59719.0,0.05676785]
[1723966189897,0.588812,59720.0,59719.0,0.05676785]
[1723966190100,0.588812,59720.0,59719.0,0.12226785]
[1723966191096,0.119958,59720.0,59719.0,0.20476785]
[1723966191951,0.002745,59720.0,59719.0,0.20476785]
[1723966192363,0.119958,59720.0,59719.0,0.20476785]
[1723966192549,0.002745,59720.0,59719.0,0.20476785]
[1723966193354,0.002745,59720.0,59719.0,0.25501761]
[1723966193526,0.119958,59720.0,59719.0,0.25501761]
[1723966194032,0.119958,59720.0,59719.0,0.25501666]
[1723966194033,0.002745,59720.0,59719.0,0.25501666]
[1723966194466,0.002745,59720.0,59719.0,0.25501667]
[1723966195866,0.002745,59720.0,59719.0,0.37223167]
[1723966196120,0.002745,59720.0,59719.0,0.25501667]
[1723966196879,0.002745,59720.0,59719.0,0.37223167]
[1723966197118,0.002745,59720.0,59719.0,0.25501667]
[1723966197799,0.002745,59720.0,59719.0,0.37223167]
[1723966198203,0.002745,59720.0,59719.0,0.3722321]
[1723966198432,0.002745,59720.0,59719.0,0.6066631]
[1723966198825,0.002745,59720.0,59719.0,0.55641334]
[1723966199835,0.002745,59720.0,59719.0,0.32198234]
[1723966200443,0.002745,59720.0,59719.0,0.39735698]
[1723966200993,0.002745,59720.0,59719.0,0.32198234]
[1723966201195,0.002745,59720.0,59719.0,0.2661225]
[1723966201383,0.002745,59720.0,59719.0,0.32197886]
[1723966202373,0.002745,59720.0,59719.0,0.39737971]
[1723966204418,0.002745,59720.0,59719.0,0.76897092]
[1723966204632,0.002745,59720.0,59719.0,0.76899223]
[1723966205023,0.002745,59720.0,59719.0,0.71313587]